[Event "TUR-ch Veterans 2020"]
[Site "Antalya-Belek"]
[Date "2020.01.22"]
[Round "5"]
[White "Topaloglu, Hayati"]
[Black "Ozmen, Halil Nejat"]
[Result "0-1"]
[ECO "B13"]
[WhiteElo "1750"]
[BlackElo "1789"]
[Annotator "NA"]
[PlyCount "72"]
[EventDate "2020.01.19"]
[EventCountry "TUR"]
[SourceTitle "playchess.com"]
[Source "ChessBase"]
[SourceQuality "1"]
[TimeControl "5400+30"]

1. e4 {[%emt 0:00:30]} c6 {[%emt 0:00:30]} 2. d4 {[%emt 0:00:30]} d5 {[%emt 0:00:30]} 3. exd5 {[%emt 0:00:30]} cxd5 {[%emt 0:00:00]} 4. Bd3 {[%emt 0:00:30]} Nc6 {[%emt 0:00:00]} 5. c3 {[%emt 0:00:30]} Nf6 {[%emt 0:00:00]} 6. Nf3 {[%emt 0:00:00]} Bg4 {[%emt 0:00:00]} 7. Bg5 {[%emt 0:00:00]} Ne4 {[%emt 0:05:30]} 8. Bf4 {[%emt 0:02:30]} Qb6 {[%emt 0:00:30]} 9. Qe2 {[%emt 0:02:30]} Bxf3 {[%emt 0:00:30]} 10. gxf3 {[%emt 0:00:00]} Nf6 {[%emt 0:00:30]} 11. Na3 {[%emt 0:01:00]} e6 {[%emt 0:02:30]} 12. Nb5 {[%emt 0:01:30]} Rc8 {[%emt 0:00:30]} 13. Bd6 {[%emt 0:04:30]} Nxd4 {[%emt 0:16:30]} 14. cxd4 {[%emt 0:00:30]} Bxd6 {[%emt 0:00:30]} 15. Nxd6+ {[%emt 0:01:30]} Qxd6 {[%emt 0:00:00]} 16. Bb5+ {[%emt 0:06:30]} Nd7 {[%emt 0:01:00]} 17. O-O {[%emt 0:01:30]} O-O {[%emt 0:00:30]} 18. Qd2 {[%emt 0:01:30]} a6 {[%emt 0:00:30]} 19. Bd3 {[%emt 0:02:30]} Nf6 {[%emt 0:00:30]} 20. Kh1 {[%emt 0:00:30]} Nh5 {[%emt 0:04:30]} 21. Qg5 {[%emt 0:01:30]} g6 {[%emt 0:01:30]} 22. Rg1 {[%emt 0:02:30]} Nf4 {[%emt 0:00:30]} 23. Bf1 {[%emt 0:00:30]} f6 {[%emt 0:06:30]} 24. Qh6 {[%emt 0:02:30]} Rf7 {[%emt 0:00:30]} 25. Rg4 {[%emt 0:00:30]} e5 {[%emt 0:00:00]} 26. Re1 {[%emt 0:04:30]} Rcf8 {[%emt 0:08:00]} 27. h4 {[%emt 0:01:30]} Qb4 {[%emt 0:01:30]} 28. Rd1 {[%emt 0:00:30]} Qxb2 {[%emt 0:00:30]} 29. Kg1 {[%emt 0:04:30]} Qc2 {[%emt 0:01:30]} 30. Re1 {[%emt 0:01:30]} Qd2 {[%emt 0:00:30]} 31. dxe5 {[%emt 0:02:30]} Ne2+ {[%emt 0:01:30]} 32. Rxe2 {[%emt 0:00:30]} Qxh6 {[%emt 0:00:30]} 33. e6 {[%emt 0:03:30]} Re7 {[%emt 0:00:00]} 34. Rd4 {[%emt 0:00:30]} Rfe8 {[%emt 0:01:00]} 35. Bh3 {[%emt 0:00:30]} f5 {[%emt 0:00:30]} 36. Rxd5 {[%emt 0:00:30]} Qxh4 {[%emt 0:00:30]} 0-1

[Event "TUR-ch Veterans 2020"]
[Site "Antalya-Belek"]
[Date "2020.01.22"]
[Round "5"]
[White "Ulusal, Haci Mehmet"]
[Black "Yasin, Hur"]
[Result "0-1"]
[ECO "D40"]
[WhiteElo "1616"]
[BlackElo "1936"]
[Annotator "NA"]
[PlyCount "78"]
[EventDate "2020.01.19"]
[EventCountry "TUR"]
[SourceTitle "playchess.com"]
[Source "ChessBase"]
[SourceQuality "1"]
[TimeControl "5400+30"]

1. d4 {[%emt 0:00:30]} Nf6 {[%emt 0:02:30]} 2. Nf3 {[%emt 0:00:00]} e6 {[%emt 0:00:30]} 3. c4 {[%emt 0:00:00]} d5 {[%emt 0:00:30]} 4. Nc3 {[%emt 0:00:00]} c5 {[%emt 0:00:30]} 5. e3 {[%emt 0:00:00]} a6 {[%emt 0:00:30]} 6. Be2 {[%emt 0:01:30] D40: Queen's Gambit Declined: Semi-Tarrasch with 5 e3} (6. a3 Nc6 7. b3 Be7 8. Bb2 cxd4 9. exd4 O-O 10. Bd3 b6 11. O-O Bb7 12. Re1 h6 13. cxd5 exd5 14. Ne2 Bd6 15. Ng3 Re8 16. Ne5 Bxe5 17. dxe5 Nd7 18. f4 Nc5 19. Nf5 Re6 20. Nxg7 Kxg7 {1-0 (37) Korobov,A (2668)-Mamedov,R (2659) Moscow 2019}) 6... dxc4 {[%emt 0:00:30]} 7. Bxc4 {[%emt 0:00:30]} b5 {[%emt 0:00:30]} 8. Be2 {[%emt 0:00:30]} Bb7 {[%emt 0:00:30]} 9. O-O {[%emt 0:00:30]} Nbd7 {[%emt 0:03:30]} 10. Ne5 {[%emt 0:01:30]} Nxe5 {[%emt 0:07:30]} 11. dxe5 {[%emt 0:00:30]} Qxd1 {[%emt 0:00:30]} 12. Rxd1 {[%emt 0:00:30]} Nd7 $146 {[%emt 0:00:30]} ({Predecessor:} 12... Nd5 13. Nxd5 Bxd5 {1-0 (37) Klapp,U (1275)-Lonyuk,B (1147) LSS email 2010}) 13. f4 {[%emt 0:00:30]} g5 {[%emt 0:02:30]} 14. Kf2 {[%emt 0:00:30]} b4 {[%emt 0:05:30]} (14... c4 $15) 15. Na4 {[%emt 0:01:30]} Bc6 {[%emt 0:00:00]} 16. Bf3 {[%emt 0:02:30]} (16. b3 $11) 16... Bxa4 {[%emt 0:01:00]} 17. b3 {[%emt 0:00:00]} O-O-O {[%emt 0:05:30]} ({Better is} 17... Rc8 $17 18. bxa4 a5) 18. bxa4 {[%emt 0:00:00]} Be7 {[%emt 0:01:30]} 19. a5 {[%emt 0:01:30]} Nb8 {[%emt 0:01:30]} 20. Bd2 {[%emt 0:06:30]} Rd7 {[%emt 0:02:30]} 21. Rac1 {[%emt 0:00:30]} Rhd8 {[%emt 0:00:30]} 22. Ke1 {[%emt 0:03:30]} Rc7 {[%emt 0:01:30]} 23. Rc4 {[%emt 0:04:30]} h6 {[%emt 0:09:30]} 24. Rdc1 {[%emt 0:00:30]} Rdd7 {[%emt 0:03:30]} 25. g4 $14 {[%emt 0:03:30]} Rd3 {[%emt 0:21:30]} 26. Be4 {[%emt 0:03:30]} Ra3 {[%emt 0:01:30]} 27. Bxb4 {[%emt 0:02:30]} Rxe3+ {[%emt 0:03:30]} 28. Kf2 {[%emt 0:00:30]} Rxe4 {[%emt 0:00:30]} 29. Rxe4 {[%emt 0:01:30]} cxb4 {[%emt 0:00:30]} 30. Rcc4 {[%emt 0:04:30]} Nc6 {[%emt 0:00:30]} 31. f5 {[%emt 0:00:30]} Nxa5 {[%emt 0:00:30]} 32. Rxc7+ {[%emt 0:00:30]} Kxc7 {[%emt 0:00:00]} 33. Ke2 {[%emt 0:00:30]} Kc6 {[%emt 0:01:00]} 34. Kd3 {[%emt 0:00:30]} Kd5 {[%emt 0:01:30]} 35. Rd4+ {[%emt 0:04:30]} Kxe5 {[%emt 0:00:30]} 36. Rd7 {[%emt 0:00:30]} Nc6 {[%emt 0:00:30]} 37. fxe6 {[%emt 0:00:30]} Kxe6 {[%emt 0:01:30]} 38. Rb7 {[%emt 0:00:30]} Ne5+ {[%emt 0:02:59]} 39. Ke4 {[%emt 0:00:30]} Nxg4 {[%emt 0:01:24]} 0-1

[Event "TUR-ch Veterans 2020"]
[Site "Antalya-Belek"]
[Date "2020.01.22"]
[Round "5"]
[White "Bagci, Hikmet"]
[Black "Akinci, Ahmet"]
[Result "0-1"]
[ECO "C61"]
[WhiteElo "1603"]
[BlackElo "1355"]
[Annotator "NA"]
[PlyCount "126"]
[EventDate "2020.01.19"]
[EventCountry "TUR"]
[SourceTitle "playchess.com"]
[Source "ChessBase"]
[SourceQuality "1"]
[TimeControl "5400+30"]

1. e4 {[%emt 0:00:30]} e5 {[%emt 0:03:30]} 2. Nf3 {[%emt 0:00:00]} Nc6 {[%emt 0:00:30]} 3. Bb5 {[%emt 0:00:00]} Nd4 {[%emt 0:00:00]} 4. Nxd4 {[%emt 0:00:30]} exd4 {[%emt 0:00:00]} 5. O-O {[%emt 0:02:30]} a6 {[%emt 0:06:30]} 6. Bc4 {[%emt 0:00:30]} b5 {[%emt 0:00:30]} 7. Bb3 {[%emt 0:00:30]} Bb7 {[%emt 0:00:30]} 8. d3 {[%emt 0:00:30]} d5 {[%emt 0:00:30]} 9. Qf3 {[%emt 0:05:30]} Qf6 {[%emt 0:01:30]} 10. Qxf6 {[%emt 0:12:30]} Nxf6 {[%emt 0:00:30]} 11. e5 {[%emt 0:00:30]} Nd7 {[%emt 0:01:30]} 12. Bf4 {[%emt 0:04:30]} Nc5 {[%emt 0:04:30]} 13. Nd2 {[%emt 0:00:30]} a5 {[%emt 0:06:30]} 14. a3 {[%emt 0:00:30]} Be7 {[%emt 0:05:30]} 15. h3 {[%emt 0:01:30]} h5 {[%emt 0:01:30]} 16. Nf3 {[%emt 0:01:30]} Ne6 {[%emt 0:03:30]} 17. Bd2 {[%emt 0:00:30]} g5 {[%emt 0:00:30]} 18. c3 {[%emt 0:05:30]} c5 {[%emt 0:02:30]} 19. Nh2 {[%emt 0:03:30]} dxc3 {[%emt 0:04:30]} 20. bxc3 {[%emt 0:00:30]} c4 {[%emt 0:06:30]} 21. Bc2 {[%emt 0:01:30]} Rg8 {[%emt 0:14:30]} 22. d4 {[%emt 0:02:30]} g4 {[%emt 0:03:30]} 23. hxg4 {[%emt 0:00:30]} hxg4 {[%emt 0:00:30]} 24. Bf5 {[%emt 0:11:30]} g3 {[%emt 0:03:30]} 25. fxg3 {[%emt 0:01:30]} Rxg3 {[%emt 0:00:30]} 26. Rf3 {[%emt 0:01:30]} Rxf3 {[%emt 0:02:30]} 27. Nxf3 {[%emt 0:00:30]} b4 {[%emt 0:01:30]} 28. axb4 {[%emt 0:00:00]} a4 {[%emt 0:00:00]} 29. Bxe6 {[%emt 0:08:00]} fxe6 {[%emt 0:00:00]} 30. Bc1 {[%emt 0:00:30]} Bc6 {[%emt 0:00:30]} 31. Kf2 {[%emt 0:07:30]} Kf7 {[%emt 0:00:30]} 32. Ba3 {[%emt 0:01:30]} Kg6 {[%emt 0:04:30]} 33. Rh1 {[%emt 0:00:30]} Be8 {[%emt 0:01:30]} 34. g4 {[%emt 0:01:30]} Kg7 {[%emt 0:01:30]} 35. Ra1 {[%emt 0:05:30]} Bg6 {[%emt 0:01:55]} 36. Bc1 {[%emt 0:01:30]} Be4 {[%emt 0:01:23]} 37. Kg3 {[%emt 0:00:30]} Rf8 {[%emt 0:00:20]} 38. Nd2 {[%emt 0:03:02]} Bc2 {[%emt 0:00:36]} 39. Nf3 {[%emt 0:03:49]} Bd1 {[%emt 0:00:39]} 40. Ng1 {[%emt 0:00:32]} Bb3 {[%emt 0:03:17]} 41. Nf3 {[%emt 0:01:45]} Kg6 {[%emt 0:00:37]} 42. Bf4 {[%emt 0:01:36]} Bc2 {[%emt 0:01:15]} 43. g5 {[%emt 0:02:52]} Bb3 {[%emt 0:00:33]} 44. Nh4+ {[%emt 0:00:47]} Kh5 {[%emt 0:01:10]} 45. Nf3 {[%emt 0:00:01]} Kg6 {[%emt 0:00:40]} 46. Nh4+ {[%emt 0:00:03]} Kg7 {[%emt 0:00:34]} 47. Ng2 {[%emt 0:01:01]} Ra8 {[%emt 0:00:52]} 48. Bc1 {[%emt 0:01:32]} Kg6 {[%emt 0:00:09]} 49. Nh4+ {[%emt 0:00:14]} Kh5 {[%emt 0:00:15]} 50. Nf3 {[%emt 0:00:51]} Rg8 {[%emt 0:01:35]} 51. Bf4 {[%emt 0:00:15]} Ra8 {[%emt 0:00:57]} 52. Rh1+ {[%emt 0:01:07]} Kg6 {[%emt 0:00:03]} 53. Rh6+ {[%emt 0:00:32]} Kf5 {[%emt 0:01:09]} 54. Nh4+ {[%emt 0:02:01]} Ke4 {[%emt 0:00:12]} 55. Rxe6 {[%emt 0:00:18]} a3 {[%emt 0:00:54]} 56. Bc1 {[%emt 0:00:07]} Bxg5 {[%emt 0:01:01]} 57. Bxa3 {[%emt 0:00:41]} Bxh4+ {[%emt 0:00:08]} 58. Kxh4 {[%emt 0:00:00]} Rxa3 {[%emt 0:00:08]} 59. Rf6 {[%emt 0:00:08]} Ba4 {[%emt 0:00:55]} 60. Ra6 {[%emt 0:00:21]} Ra2 {[%emt 0:01:14]} 61. e6 {[%emt 0:00:30]} Kf4 {[%emt 0:00:30]} 62. Kh3 {[%emt 0:00:32]} Kf3 {[%emt 0:00:54]} 63. e7 {[%emt 0:00:18]} Bd7+ {[%emt 0:00:52]} 0-1

[Event "TUR-ch Veterans 2020"]
[Site "Antalya-Belek"]
[Date "2020.01.22"]
[Round "5"]
[White "Bapoglu, Ibrahim"]
[Black "Muratoglu, Salih"]
[Result "1/2-1/2"]
[ECO "A04"]
[WhiteElo "1576"]
[BlackElo "1967"]
[Annotator "NA"]
[PlyCount "95"]
[EventDate "2020.01.19"]
[EventCountry "TUR"]
[SourceTitle "playchess.com"]
[Source "ChessBase"]
[SourceQuality "1"]
[TimeControl "5400+30"]

1. b3 {[%emt 0:00:30]} Nf6 {[%emt 0:00:30]} 2. Bb2 {[%emt 0:00:30]} c5 {[%emt 0:00:30]} 3. e3 {[%emt 0:00:30]} Nc6 {[%emt 0:00:30]} 4. Nf3 {[%emt 0:00:30]} d6 {[%emt 0:00:30]} 5. Be2 {[%emt 0:00:30]} (5. d4 e6 6. dxc5 Qa5+ 7. Qd2 Qxc5 8. Nc3 Be7 9. O-O-O O-O 10. Bd3 Nb4 11. Be2 Bd7 12. a3 Nbd5 13. Nxd5 Nxd5 {0-1 (47) Nabaty,T (2678)-Sukandar,I (2396) Biel 2019}) 5... e5 {[%emt 0:01:30]} 6. d3 {[%emt 0:00:30] A04: Unusual lines after 1 Nf3 and King's Indian Attack} Be7 {[%emt 0:00:30]} 7. Nbd2 {[%emt 0:00:30]} O-O {[%emt 0:00:30]} 8. O-O {[%emt 0:00:30]} Qc7 {[%emt 0:00:30]} 9. c4 {[%emt 0:02:30]} a5 $146 {[%emt 0:01:30]} ({Predecessor:} 9... Re8 10. Rc1 Bf8 11. Qc2 {½-½ (41) Romero,S (1930)-Luchan,J (2038) Mineola 2006}) 10. h3 {[%emt 0:02:30]} Bf5 {[%emt 0:01:30]} 11. e4 {[%emt 0:00:30]} Bd7 {[%emt 0:00:30]} 12. Nh2 {[%emt 0:00:30]} a4 {[%emt 0:00:30]} 13. f4 {[%emt 0:00:30]} a3 {[%emt 0:01:30]} 14. Bc3 {[%emt 0:00:00]} exf4 {[%emt 0:00:30]} 15. Bg4 {[%emt 0:11:00]} Bxg4 {[%emt 0:03:30]} (15... Ne5 {[%emt 0:03:30]}) ({Better is} 15... Nxg4 $17 16. Nxg4 Ne5 17. Rxf4 Bg5) 16. Nxg4 {[%emt 0:00:30]} Ne5 {[%emt 0:00:30]} 17. Nxf6+ {[%emt 0:00:30]} Bxf6 {[%emt 0:00:30]} 18. Rxf4 {[%emt 0:02:30]} Ng6 $2 {[%emt 0:02:30]} (18... Nf3+ $11 19. Rxf3 Bxc3) 19. Rxf6 {[%emt 0:00:30]} gxf6 {[%emt 0:00:30]} 20. Bxf6 {[%emt 0:00:30]} Ra6 {[%emt 0:02:30]} 21. Qf3 {[%emt 0:02:30]} d5 {[%emt 0:00:30]} (21... Re8 {might work better.} 22. Rf1 Re6) 22. exd5 {[%emt 0:01:30]} ({Less strong is} 22. cxd5 Qf4 $11) 22... Qf4 {[%emt 0:01:30] [#]} 23. Qxf4 $1 {[%emt 0:05:30]} Nxf4 {[%emt 0:00:30]} 24. Be7 $2 {[%emt 0:01:30]} (24. Ne4 $18) 24... Rg6 {[%emt 0:00:30]} (24... Re8 $14 25. d6 (25. Bxc5 Rg6 $11) 25... Rxe7 26. dxe7 Re6) 25. Bxf8 {[%emt 0:06:30]} Rxg2+ {[%emt 0:01:30]} 26. Kh1 {[%emt 0:00:30]} Kxf8 {[%emt 0:00:30]} 27. Ne4 {[%emt 0:00:30]} Rg6 {[%emt 0:03:30]} (27... Rc2 $11 {keeps the balance.}) 28. Nxc5 {[%emt 0:03:30]} b6 {[%emt 0:00:30]} 29. Rf1 {[%emt 0:03:30]} Nxh3 $2 {[%emt 0:03:30]} (29... Nxd5 $16 30. Nd7+ (30. cxd5 bxc5 31. Kh2 Rg5 $11) 30... Ke8) 30. Nd7+ {[%emt 0:00:30]} Ke8 {[%emt 0:02:30]} 31. Ne5 $18 {[%emt 0:00:30]} Rh6 {[%emt 0:04:30]} 32. Kg2 {[%emt 0:04:30]} Ng5 {[%emt 0:01:30]} 33. Ng4 {[%emt 0:00:30]} Rh4 {[%emt 0:02:30]} 34. Kg3 {[%emt 0:07:30]} Rh3+ {[%emt 0:01:30]} 35. Kf4 {[%emt 0:00:30]} h6 {[%emt 0:00:30]} 36. Nxh6 {[%emt 0:03:30]} Rxh6 {[%emt 0:00:30]} 37. Kxg5 {[%emt 0:00:30]} Rh2 {[%emt 0:00:30]} 38. Rf6 {[%emt 0:00:30]} Rxa2 {[%emt 0:02:30]} 39. Rxb6 {[%emt 0:00:00]} Rb2 {[%emt 0:00:00]} 40. Ra6 {[%emt 0:01:00]} Rxb3 {[%emt 0:00:00]} 41. d4 {[%emt 0:00:30]} Rd3 {[%emt 0:01:30]} 42. Kf6 {[%emt 0:01:30]} Rxd4 {[%emt 0:00:30]} 43. Rxa3 {[%emt 0:01:30]} Rf4+ {[%emt 0:00:30]} 44. Ke5 {[%emt 0:00:30]} Rxc4 {[%emt 0:00:30]} 45. Ra8+ {[%emt 0:01:30]} Kd7 {[%emt 0:00:00]} 46. Ra7+ {[%emt 0:00:30]} Rc7 {[%emt 0:00:00]} 47. Ra6 {[%emt 0:00:30]} Rc1 {[%emt 0:00:30]} 48. Ra7+ {[%emt 0:03:30]} 1/2-1/2

[Event "TUR-ch Veterans 2020"]
[Site "Antalya-Belek"]
[Date "2020.01.22"]
[Round "5"]
[White "Hatipoglu, Metin"]
[Black "Guner, Bulent"]
[Result "0-1"]
[ECO "C50"]
[WhiteElo "1570"]
[BlackElo "1964"]
[Annotator "NA"]
[PlyCount "108"]
[EventDate "2020.01.19"]
[EventCountry "TUR"]
[SourceTitle "playchess.com"]
[Source "ChessBase"]
[SourceQuality "1"]
[TimeControl "5400+30"]

1. e4 {[%emt 0:00:30]} e5 {[%emt 0:01:30]} 2. Nf3 {[%emt 0:00:00]} Nc6 {[%emt 0:00:00]} 3. Bc4 {[%emt 0:00:00]} Nf6 {[%emt 0:03:00]} 4. O-O {[%emt 0:03:30]} Bc5 {[%emt 0:03:30]} 5. c3 {[%emt 0:02:30]} d6 {[%emt 0:04:30]} (5... Nxe4 $15 6. Bd5 Nf6 7. Bxc6 dxc6) 6. d4 {[%emt 0:01:30]} Bb6 {[%emt 0:01:30]} 7. dxe5 {[%emt 0:06:30]} Nxe5 {[%emt 0:00:30]} 8. Nxe5 {[%emt 0:01:30]} dxe5 {[%emt 0:00:00]} 9. Qb3 {[%emt 0:04:30]} O-O {[%emt 0:02:00]} 10. Bg5 {[%emt 0:02:30]} h6 {[%emt 0:01:30]} 11. Bh4 {[%emt 0:01:30] [#]} ({Better is} 11. Bxf6 $1 $15 Qxf6 12. Qc2) 11... Qe7 {[%emt 0:05:30]} ({Better is} 11... g5 $1 $17 {[%cal Rg5h4]} 12. Bg3 Nxe4) 12. Nd2 {[%emt 0:03:30]} g5 {[%emt 0:10:30]} 13. Bg3 {[%emt 0:00:30]} Bg4 {[%emt 0:00:30]} 14. Rfe1 {[%emt 0:04:30]} Nh5 {[%emt 0:14:30]} 15. Nf1 $11 {[%emt 0:05:30]} Nxg3 {[%emt 0:02:30]} 16. hxg3 {[%emt 0:02:30]} c6 {[%emt 0:07:30]} 17. Ne3 {[%emt 0:03:30]} Bxe3 {[%emt 0:00:30]} 18. Rxe3 {[%emt 0:00:30]} Rad8 {[%emt 0:01:30]} 19. Be2 {[%emt 0:05:30]} Be6 {[%emt 0:01:30]} 20. Qc2 {[%emt 0:01:30]} Rd7 {[%emt 0:01:30]} 21. Rd3 {[%emt 0:04:30]} Rxd3 {[%emt 0:01:30]} 22. Qxd3 {[%emt 0:02:30]} Rd8 {[%emt 0:00:30]} 23. Qc2 {[%emt 0:01:30]} a5 {[%emt 0:02:30]} 24. a4 {[%emt 0:06:30]} Kg7 {[%emt 0:01:30]} 25. Rd1 {[%emt 0:02:30]} Rd6 {[%emt 0:01:30]} 26. Rxd6 {[%emt 0:01:30]} Qxd6 {[%emt 0:00:30]} 27. Qd1 {[%emt 0:00:00]} Qc5 {[%emt 0:00:30]} 28. Qd8 {[%emt 0:02:00]} Bb3 {[%emt 0:09:30]} 29. Bd1 {[%emt 0:01:30]} Be6 {[%emt 0:01:30]} 30. Be2 {[%emt 0:01:30]} Ba2 {[%emt 0:01:30]} 31. Qd3 {[%emt 0:03:30]} Bb3 {[%emt 0:00:57]} 32. Bd1 {[%emt 0:00:30]} Qc4 {[%emt 0:00:03]} 33. Qxc4 {[%emt 0:02:30]} Bxc4 {[%emt 0:00:30]} 34. f3 {[%emt 0:01:30]} Kf8 {[%emt 0:00:31]} 35. Kf2 {[%emt 0:00:30]} Ke7 {[%emt 0:00:29]} 36. b3 {[%emt 0:01:30]} Be6 {[%emt 0:00:47]} 37. g4 {[%emt 0:01:30]} Kd6 {[%emt 0:00:26]} 38. Ke3 {[%emt 0:02:58]} Kc5 {[%emt 0:00:45]} 39. Kd3 {[%emt 0:02:04]} b5 {[%emt 0:00:29]} 40. axb5 {[%emt 0:01:12]} cxb5 {[%emt 0:00:26]} 41. Kc2 {[%emt 0:01:06]} Bd7 {[%emt 0:03:23]} 42. Be2 {[%emt 0:01:25]} f6 {[%emt 0:02:41]} 43. Kb2 {[%emt 0:02:54]} b4 {[%emt 0:00:29]} 44. Kc2 {[%emt 0:02:26]} Be8 {[%emt 0:02:09]} 45. Kd3 {[%emt 0:01:23]} Bb5+ {[%emt 0:00:29]} 46. c4 {[%emt 0:00:50]} Be8 {[%emt 0:00:08]} 47. Bd1 {[%emt 0:00:14]} h5 {[%emt 0:01:29]} 48. gxh5 {[%emt 0:01:04]} Bxh5 {[%emt 0:00:08]} 49. g4 {[%emt 0:00:00]} Bf7 {[%emt 0:00:13]} 50. Bc2 {[%emt 0:01:52]} a4 {[%emt 0:03:03]} 51. bxa4 {[%emt 0:03:00]} Bxc4+ {[%emt 0:00:12]} 52. Kd2 {[%emt 0:01:33]} b3 {[%emt 0:00:29]} 53. Bd1 {[%emt 0:02:16]} b2 {[%emt 0:01:11]} 54. Bc2 {[%emt 0:00:21]} Ba2 {[%emt 0:00:13]} 0-1

[Event "TUR-ch Veterans 2020"]
[Site "Antalya-Belek"]
[Date "2020.01.23"]
[Round "6"]
[White "Buker, Muhittin"]
[Black "Hatipoglu, Metin"]
[Result "1-0"]
[ECO "D05"]
[WhiteElo "2008"]
[BlackElo "1570"]
[Annotator "NA"]
[PlyCount "67"]
[EventDate "2020.01.19"]
[EventCountry "TUR"]
[SourceTitle "playchess.com"]
[Source "ChessBase"]
[SourceQuality "1"]
[TimeControl "5400+30"]

1. d4 {[%emt 0:00:30]} d5 {[%emt 0:00:30]} 2. Nf3 {[%emt 0:00:00]} Nf6 {[%emt 0:00:30]} 3. e3 {[%emt 0:00:00]} e6 {[%emt 0:00:30]} 4. Bd3 {[%emt 0:00:30]} c5 {[%emt 0:01:30]} 5. b3 {[%emt 0:00:00]} Nc6 {[%emt 0:00:30]} 6. O-O {[%emt 0:00:00]} Be7 {[%emt 0:00:00]} 7. Bb2 {[%emt 0:00:30]} O-O {[%emt 0:00:00]} 8. a3 {[%emt 0:00:00]} b6 {[%emt 0:02:30]} 9. Ne5 {[%emt 0:00:00]} Bb7 {[%emt 0:04:30]} 10. Nd2 {[%emt 0:00:30]} Nxe5 {[%emt 0:02:30]} 11. dxe5 {[%emt 0:01:30] D05: Colle System with ...e6} Ne4 {[%emt 0:00:30]} 12. Bxe4 {[%emt 0:06:30]} (12. Nxe4 dxe4 13. Bc4 Qc8 14. Qe2 a6 15. a4 Bc6 16. Rfd1 Qb7 17. Qf1 h6 18. h3 Rfd8 {½-½ (76) Saptarshi,R (2389)-Quesada Perez,Y (2626) Barcelona 2012}) 12... dxe4 {[%emt 0:04:30]} 13. Qe2 {[%emt 0:00:00]} f5 {[%emt 0:07:30]} 14. exf6 {[%emt 0:03:00]} Bxf6 {[%emt 0:02:30]} 15. Bxf6 {[%emt 0:01:30]} Qxf6 {[%emt 0:03:30]} 16. Rad1 $146 {[%emt 0:04:30]} ({Predecessor:} 16. Qg4 Qf5 17. Qxf5 exf5 18. Rfd1 Rad8 {0-1 (54) Nedimovic,L (2217)-Bratovic,B (2350) Ljubljana 2005}) 16... Rad8 {[%emt 0:02:30]} 17. h3 {[%emt 0:03:30]} Rf7 {[%emt 0:06:30]} 18. Nc4 {[%emt 0:02:30]} Rxd1 19. Rxd1 {[%emt 0:00:30]} Ba6 {[%emt 0:09:00]} 20. Rd2 {[%emt 0:04:30]} g6 {[%emt 0:06:30]} 21. Qg4 {[%emt 0:02:30]} Bxc4 {[%emt 0:02:30]} 22. bxc4 {[%emt 0:00:30]} Qe5 {[%emt 0:07:30]} 23. Kf1 {[%emt 0:09:30]} Kg7 {[%emt 0:02:30]} 24. Ke2 {[%emt 0:00:30]} h5 {[%emt 0:05:30]} 25. Qg3 {[%emt 0:05:30]} Qc3 {[%emt 0:00:30]} 26. Qd6 {[%emt 0:00:30]} Qxc4+ {[%emt 0:01:30]} 27. Ke1 {[%emt 0:00:30]} Kh7 {[%emt 0:05:30]} 28. Qe5 {[%emt 0:01:30]} Rg7 {[%emt 0:06:38]} 29. g4 {[%emt 0:00:30]} b5 $18 {[%emt 0:05:46]} (29... Qa4 30. gxh5 Qe8 31. Qxe4 Qe7 32. hxg6+ Rxg6) 30. Rd8 {[%emt 0:01:30]} Qxc2 {[%emt 0:03:34]} 31. Kf1 {[%emt 0:01:30]} Qc4+ {[%emt 0:02:58]} 32. Kg1 {[%emt 0:00:30]} hxg4 {[%emt 0:01:49]} 33. hxg4 {[%emt 0:00:00]} Qe2 {[%emt 0:00:28]} 34. Qh2# {[%emt 0:01:00]} 1-0

[Event "TUR-ch Veterans 2020"]
[Site "Antalya-Belek"]
[Date "2020.01.23"]
[Round "6"]
[White "Guner, Bulent"]
[Black "Yilmaz, Turhan"]
[Result "1/2-1/2"]
[ECO "E65"]
[WhiteElo "1964"]
[BlackElo "2132"]
[Annotator "ChessBase"]
[PlyCount "70"]
[EventDate "2020.01.19"]
[EventCountry "TUR"]
[SourceTitle "playchess.com"]
[Source "ChessBase"]
[SourceQuality "1"]
[TimeControl "5400+30"]

1. d4 {[%emt 0:00:30]} Nf6 {[%emt 0:00:30]} 2. Nf3 {[%emt 0:03:30]} g6 {[%emt 0:00:00]} 3. g3 {[%emt 0:00:30]} Bg7 {[%emt 0:00:00]} 4. Bg2 {[%emt 0:00:00]} O-O {[%emt 0:00:30]} 5. O-O {[%emt 0:00:00]} d6 {[%emt 0:00:30]} 6. c4 {[%emt 0:01:30]} c5 {[%emt 0:00:30]} 7. dxc5 {[%emt 0:02:30]} dxc5 {[%emt 0:00:00]} 8. Nc3 {[%emt 0:01:30]} Nc6 {[%emt 0:00:00]} 9. Be3 {[%emt 0:03:30]} Qa5 {[%emt 0:00:30]} 10. Qa4 {[%emt 0:02:30]} Nd7 {[%emt 0:04:30]} 11. Qxa5 {[%emt 0:03:30]} Nxa5 {[%emt 0:05:30]} 12. Nd2 {[%emt 0:00:30]} Rb8 {[%emt 0:14:30]} 13. Rac1 {[%emt 0:01:30]} b6 {[%emt 0:00:30]} 14. b3 {[%emt 0:05:30]} Bb7 {[%emt 0:00:30]} 15. Nf3 {[%emt 0:03:30]} Ne5 {[%emt 0:05:30]} 16. Nxe5 {[%emt 0:04:30]} Bxg2 {[%emt 0:01:30]} 17. Kxg2 {[%emt 0:00:30]} Bxe5 {[%emt 0:00:00]} 18. Bf4 {[%emt 0:07:30]} Bxf4 {[%emt 0:01:00]} 19. gxf4 {[%emt 0:00:00]} Rfd8 {[%emt 0:00:00]} 20. Rfd1 {[%emt 0:00:00]} Nc6 {[%emt 0:00:00]} 21. e3 {[%emt 0:01:30]} Rxd1 {[%emt 0:02:30]} 22. Rxd1 {[%emt 0:01:30]} Rd8 {[%emt 0:00:00]} 23. Rxd8+ {[%emt 0:02:30]} Nxd8 {[%emt 0:00:00]} 24. Kf3 {[%emt 0:01:30]} Nc6 {[%emt 0:04:30]} 25. Ke4 {[%emt 0:04:30]} e6 {[%emt 0:00:30]} 26. Kf3 {[%emt 0:00:30]} Kf8 {[%emt 0:00:30]} 27. Ne4 {[%emt 0:02:30]} Ke7 {[%emt 0:00:00]} 28. Ke2 {[%emt 0:01:30]} f5 {[%emt 0:02:00]} 29. Nc3 {[%emt 0:02:30]} Kf6 {[%emt 0:00:30]} 30. Kf3 {[%emt 0:01:30]} h6 {[%emt 0:00:30]} 31. h4 {[%emt 0:00:30]} Ke7 {[%emt 0:01:30]} 32. Ke2 {[%emt 0:03:30]} Kf6 {[%emt 0:00:30]} 33. Kf3 {[%emt 0:00:00]} Ke7 {[%emt 0:00:00]} 34. Ke2 {[%emt 0:00:00]} Kf6 {[%emt 0:00:00]} 35. Kf3 {[%emt 0:01:30]} Ke7 {[%emt 0:00:00]} 1/2-1/2